[Event "Irish International Open 2019"]
[Site "Dublin"]
[Date "2019.04.20"]
[Round "6.24"]
[White "Plaza Reino, Mercedes"]
[Black "Phelan, Leo"]
[Result "0-1"]
[ECO "E73"]
[WhiteElo "1927"]
[BlackElo "1708"]
[Annotator "NA"]
[PlyCount "70"]
[EventDate "2019.02.28"]
[EventType "swiss"]
[EventCountry "IRL"]
[SourceTitle "playchess.com"]
[Source "ChessBase"]
[SourceQuality "1"]
[TimeControl "5400+30"]

1. d4 {[%emt 0:00:00]} Nf6 {[%emt 0:01:15]} 2. c4 {[%emt 0:00:00]} g6 {[%emt 0:00:04]} 3. Nc3 {[%emt 0:00:00]} Bg7 {[%emt 0:00:03]} 4. e4 {[%emt 0:01:47]} d6 {[%emt 0:00:09]} 5. Be2 {[%emt 0:00:12]} O-O {[%emt 0:00:04]} 6. g4 {[%emt 0:01:45]} c5 {[%emt 0:00:04]} 7. d5 {[%emt 0:07:01]} e6 {[%emt 0:00:07] E73: King's Indian: Averbakh Variation without 6...c5} 8. h4 {[%emt 0:21:31]} (8. g5 Nh5 9. Bxh5 gxh5 10. Qxh5 Re8 11. Nge2 exd5 12. Nxd5 Nd7 13. Ng3 Ne5 14. Nf5 Ng6 15. Nxg7 Rxe4+ {0-1 (29) Mamedyarov,S (2763)-Radjabov,T (2744) Moscow 2010}) 8... exd5 {[%emt 0:01:26]} 9. cxd5 {[%emt 0:05:48]} Re8 {[%emt 0:00:17]} 10. f3 {[%emt 0:03:44]} a6 {[%emt 0:05:25]} 11. h5 {[%emt 0:01:53]} b5 {[%emt 0:01:12]} 12. hxg6 {[%emt 0:03:56]} fxg6 {[%emt 0:00:30]} 13. Bh6 $146 {[%emt 0:05:59]} ({Predecessor:} 13. Bg5 b4 14. Nb1 Nbd7 15. Nd2 {0-1 (34) Pejovic,M-Bajkovic,N (2143) Cetinje 2009}) 13... b4 {[%emt 0:01:38]} 14. Bxg7 {[%emt 0:11:35]} Kxg7 {[%emt 0:00:07]} 15. Nb1 {[%emt 0:00:25]} Nbd7 {[%emt 0:03:17]} 16. Qc1 {[%emt 0:02:52]} Kg8 {[%emt 0:01:03]} 17. Qh6 {[%emt 0:08:45]} a5 {[%emt 0:06:43]} 18. Nh3 {[%emt 0:03:02]} Nf8 {[%emt 0:00:34]} 19. Nf4 {[%emt 0:01:08]} Qe7 {[%emt 0:04:26]} 20. Nd2 {[%emt 0:03:01]} Ra7 {[%emt 0:03:36]} 21. Nc4 {[%emt 0:01:28]} N6d7 {[%emt 0:09:04]} 22. Rh2 {[%emt 0:03:07]} Ne5 {[%emt 0:01:11]} 23. Ne3 {[%emt 0:03:20]} Qf6 {[%emt 0:04:29]} 24. O-O-O {[%emt 0:02:58]} Nf7 {[%emt 0:02:56]} 25. Nh5 {[%emt 0:04:19]} Qe5 {[%emt 0:01:22]} 26. f4 {[%emt 0:02:02]} Qh8 {[%emt 0:00:21]} 27. Nf5 {[%emt 0:01:16]} Bxf5 {[%emt 0:01:04]} 28. Nf6+ {[%emt 0:00:32]} Qxf6 {[%emt 0:00:12]} 29. Qh3 {[%emt 0:00:23]} Bxe4 {[%emt 0:00:41]} 30. Rf1 {[%emt 0:00:33]} Bxd5 {[%emt 0:01:50]} 31. f5 {[%emt 0:00:20]} g5 {[%emt 0:00:22]} 32. Bb5 {[%emt 0:00:40]} Rb8 {[%emt 0:01:04]} 33. Bd3 {[%emt 0:00:15]} Re7 {[%emt 0:00:47]} 34. Qg3 $19 {[%emt 0:00:44]} c4 {[%emt 0:00:52]} 35. Be2 {[%emt 0:00:30]} Rbe8 {[%emt 0:01:37]} 0-1

[Event "Irish International Open 2019"]
[Site "Dublin"]
[Date "2019.04.20"]
[Round "6.25"]
[White "Jocius, Donatas"]
[Black "Scott, Luke"]
[Result "0-1"]
[ECO "A36"]
[WhiteElo "1773"]
[BlackElo "1881"]
[Annotator "NA"]
[PlyCount "70"]
[EventDate "2019.02.28"]
[EventType "swiss"]
[EventCountry "IRL"]
[SourceTitle "playchess.com"]
[Source "ChessBase"]
[SourceQuality "1"]
[TimeControl "5400+30"]

1. c4 {[%emt 0:00:00]} c5 {[%emt 0:00:00]} 2. g3 {[%emt 0:00:14]} Nf6 {[%emt 0:00:00]} 3. Bg2 {[%emt 0:00:05]} Nc6 {[%emt 0:00:13]} 4. Nc3 {[%emt 0:00:09]} Rb8 {[%emt 0:02:30]} 5. Nf3 {[%emt 0:00:46]} d5 {[%emt 0:00:07]} 6. cxd5 {[%emt 0:00:20]} Nxd5 {[%emt 0:00:08]} 7. Nxd5 {[%emt 0:00:55]} Qxd5 {[%emt 0:00:14]} 8. O-O {[%emt 0:00:14]} e5 {[%emt 0:00:46]} 9. Ng5 {[%emt 0:00:35]} Qd6 {[%emt 0:04:01]} 10. Qb3 {[%emt 0:01:45]} Nd8 {[%emt 0:02:37]} 11. Bd5 {[%emt 0:03:32]} Ne6 {[%emt 0:03:01]} 12. Bxe6 {[%emt 0:00:37]} fxe6 {[%emt 0:00:38]} 13. Ne4 {[%emt 0:01:02]} Qd5 {[%emt 0:02:44]} 14. Qf3 {[%emt 0:01:17]} Be7 {[%emt 0:01:33]} 15. d3 {[%emt 0:00:21]} b6 {[%emt 0:01:00]} 16. b3 {[%emt 0:01:02]} Bb7 {[%emt 0:00:31]} 17. Bb2 {[%emt 0:04:58]} h5 {[%emt 0:05:15]} 18. h3 {[%emt 0:01:45]} Kd7 {[%emt 0:00:12]} 19. Kh2 {[%emt 0:00:52]} Rbf8 {[%emt 0:00:17]} 20. Nc3 {[%emt 0:01:16]} Qxf3 {[%emt 0:00:40]} 21. exf3 {[%emt 0:00:10]} Rxf3 {[%emt 0:00:28]} 22. Rad1 {[%emt 0:01:58]} h4 {[%emt 0:00:55]} 23. g4 {[%emt 0:00:41]} Rhf8 {[%emt 0:00:08]} 24. Rd2 {[%emt 0:00:24]} Bg5 {[%emt 0:01:07]} 25. Re2 {[%emt 0:00:42]} Bf4+ {[%emt 0:00:11]} 26. Kg1 {[%emt 0:00:46]} Rxh3 {[%emt 0:00:58]} 27. Ne4 {[%emt 0:01:12]} Rxd3 {[%emt 0:01:08]} 28. f3 {[%emt 0:02:19]} Ke7 {[%emt 0:01:40]} 29. Kg2 {[%emt 0:01:12]} Rfd8 {[%emt 0:00:30]} 30. g5 {[%emt 0:04:20]} Bxe4 {[%emt 0:01:04]} 31. fxe4 {[%emt 0:00:17]} Rg3+ {[%emt 0:00:56]} 32. Kh1 {[%emt 0:00:38]} Rdd3 {[%emt 0:00:42]} 33. Rh2 {[%emt 0:01:00]} h3 {[%emt 0:00:27]} 34. Rhf2 {[%emt 0:00:37]} Rxg5 {[%emt 0:00:37]} 35. Bc1 {[%emt 0:00:19]} Rg4 {[%emt 0:02:24]} 0-1

[Event "Irish International Open 2019"]
[Site "Dublin"]
[Date "2019.04.20"]
[Round "6.27"]
[White "Moran, Hugh"]
[Black "Abul Kalam, Azad Lilu"]
[Result "1/2-1/2"]
[ECO "B40"]
[WhiteElo "1522"]
[BlackElo "1951"]
[Annotator "NA RC"]
[PlyCount "27"]
[EventDate "2019.02.28"]
[EventType "swiss"]
[EventCountry "IRL"]
[SourceTitle "playchess.com"]
[Source "ChessBase"]
[SourceQuality "1"]
[TimeControl "5400+30"]

1. e4 {[%emt 0:00:00]} c5 {[%emt 0:00:00]} 2. Nf3 {[%emt 0:00:00]} e6 {[%emt 0:00:24]} 3. d3 {[%emt 0:00:00]} Nc6 {[%emt 0:00:14]} 4. Nbd2 {[%emt 0:00:00]} Nge7 {[%emt 0:01:30]} 5. g3 {[%emt 0:00:12]} Ng6 {[%emt 0:00:41]} 6. Bg2 {[%emt 0:00:21]} d5 {[%emt 0:00:39]} 7. O-O {[%emt 0:00:23]} Be7 {[%emt 0:00:24]} 8. Re1 {[%emt 0:00:38]} O-O {[%emt 0:02:48]} 9. Qe2 {[%emt 0:02:04]} Bf6 {[%emt 0:06:10]} 10. h4 {[%emt 0:01:40]} Nge5 {[%emt 0:03:02]} 11. Nxe5 {[%emt 0:02:07]} Bxe5 {[%emt 0:13:31]} 12. Nf3 {[%emt 0:01:47]} Bc7 {[%emt 0:05:18]} 13. e5 {[%emt 0:03:53]} f6 {[%emt 0:12:27]} 14. exf6 {[%emt 0:02:09]} 1/2-1/2

[Event "Irish International Open 2019"]
[Site "Dublin"]
[Date "2019.04.21"]
[Round "7.5"]
[White "Hovhannisyan, Mher"]
[Black "Li, Henry"]
[Result "1-0"]
[ECO "E62"]
[WhiteElo "2462"]
[BlackElo "2308"]
[Annotator "RC"]
[PlyCount "123"]
[EventDate "2019.02.28"]
[EventType "swiss"]
[EventCountry "IRL"]
[SourceTitle "playchess.com"]
[Source "ChessBase"]
[SourceQuality "1"]
[TimeControl "5400+30"]

1. Nf3 {[%emt 0:00:39]} Nf6 {[%emt 0:00:00]} 2. g3 {[%emt 0:00:23]} g6 {[%emt 0:00:00]} 3. Bg2 {[%emt 0:00:03]} Bg7 {[%emt 0:00:00]} 4. O-O {[%emt 0:00:07]} O-O {[%emt 0:00:00]} 5. c4 {[%emt 0:00:43]} d6 {[%emt 0:00:29]} 6. d4 {[%emt 0:01:18]} Nc6 {[%emt 0:00:59]} 7. Nc3 {[%emt 0:00:23]} e5 {[%emt 0:00:06]} 8. dxe5 {[%emt 0:00:44]} dxe5 {[%emt 0:00:04]} 9. Bg5 {[%emt 0:06:18]} Be6 {[%emt 0:01:04]} 10. Qa4 {[%emt 0:04:29]} Qc8 {[%emt 0:00:12]} 11. Nd2 {[%emt 0:06:11]} Bh3 {[%emt 0:27:52]} 12. Bxf6 {[%emt 0:03:41]} Bxf6 {[%emt 0:02:09]} 13. Nde4 {[%emt 0:00:11]} Bg7 {[%emt 0:01:47]} 14. Nd5 {[%emt 0:01:21]} Kh8 {[%emt 0:11:50]} 15. Bxh3 {[%emt 0:04:52]} Qxh3 {[%emt 0:00:37]} 16. Nxc7 {[%emt 0:00:08]} Rac8 {[%emt 0:01:41]} 17. Nb5 {[%emt 0:01:44]} Rce8 {[%emt 0:04:23]} 18. Nc7 {[%emt 0:15:40]} Rc8 {[%emt 0:00:31]} 19. Nd5 {[%emt 0:07:21]} Nd4 {[%emt 0:03:00]} 20. Rae1 {[%emt 0:21:54]} b5 {[%emt 0:07:07]} 21. Qxa7 {[%emt 0:06:01]} Ra8 {[%emt 0:19:16]} 22. Qe7 {[%emt 0:02:20]} Rae8 {[%emt 0:04:13]} 23. Qg5 {[%emt 0:06:41]} h6 {[%emt 0:01:19]} 24. Qh4 {[%emt 0:01:23]} Qxh4 {[%emt 0:00:37]} 25. gxh4 {[%emt 0:00:01]} bxc4 {[%emt 0:00:21]} 26. Nb6 {[%emt 0:00:27]} f5 {[%emt 0:02:11]} 27. Nc3 {[%emt 0:03:19]} e4 {[%emt 0:01:47]} 28. Nxc4 {[%emt 0:00:36]} Rc8 {[%emt 0:02:33]} 29. Nb6 {[%emt 0:00:30]} Rc6 {[%emt 0:00:27]} 30. Nbd5 {[%emt 0:00:09]} Rb8 {[%emt 0:00:34]} 31. Rb1 {[%emt 0:00:46]} g5 {[%emt 0:01:30]} 32. h5 {[%emt 0:01:16]} Nb5 {[%emt 0:01:19]} 33. Ne7 {[%emt 0:01:14]} Rc5 {[%emt 0:01:09]} 34. Nxb5 {[%emt 0:01:22]} Rbxb5 {[%emt 0:00:25]} 35. b4 {[%emt 0:00:34]} Rc4 {[%emt 0:00:17]} 36. a3 {[%emt 0:00:25]} f4 {[%emt 0:01:00]} 37. Rbc1 {[%emt 0:01:21]} Rxc1 {[%emt 0:00:22]} 38. Rxc1 {[%emt 0:00:00]} Bb2 {[%emt 0:00:16]} 39. Rc5 {[%emt 0:01:07]} Rb7 {[%emt 0:00:01]} 40. Ng6+ {[%emt 0:00:31]} Kg7 {[%emt 0:00:01]} 41. a4 {[%emt 0:00:40]} Ba3 {[%emt 0:07:01]} 42. Rc3 {[%emt 0:00:52]} Bxb4 {[%emt 0:00:00]} 43. Rb3 {[%emt 0:00:02]} Rb6 {[%emt 0:00:00]} 44. Kg2 {[%emt 0:01:35]} Kf6 {[%emt 0:00:00]} 45. Kh3 {[%emt 0:00:21]} Kf5 {[%emt 0:00:00]} 46. Ne7+ {[%emt 0:00:33]} Ke6 {[%emt 0:00:05]} 47. Ng6 {[%emt 0:00:25]} Kf5 {[%emt 0:00:03]} 48. f3 {[%emt 0:00:18]} exf3 {[%emt 0:01:15]} 49. exf3 {[%emt 0:00:01]} Ke6 {[%emt 0:01:41]} 50. Kg4 {[%emt 0:00:21]} Kd5 {[%emt 0:00:39]} 51. a5 {[%emt 0:00:59]} Rb8 {[%emt 0:00:02]} 52. a6 {[%emt 0:00:34]} Kc4 {[%emt 0:00:06]} 53. Rb1 {[%emt 0:00:16]} Ra8 {[%emt 0:00:10]} 54. Ne5+ {[%emt 0:00:27]} Kc3 {[%emt 0:01:12]} 55. Nc6 {[%emt 0:00:40]} Bd6 {[%emt 0:01:14]} 56. Rd1 {[%emt 0:00:49]} Bc7 {[%emt 0:00:31]} 57. Rd7 {[%emt 0:00:19]} Rxa6 {[%emt 0:00:25]} 58. Rxc7 {[%emt 0:00:08]} Ra2 {[%emt 0:00:07]} 59. Rh7 {[%emt 0:01:13]} Rg2+ {[%emt 0:00:36]} 60. Kf5 {[%emt 0:00:04]} Kd3 {[%emt 0:00:27]} 61. Rxh6 {[%emt 0:00:15]} Ke3 {[%emt 0:00:17]} 62. Ne5 {[%emt 0:00:11]} 1-0

[Event "Irish International Open 2019"]
[Site "Dublin"]
[Date "2019.04.21"]
[Round "7.6"]
[White "De Verdier, Michael"]
[Black "Brady, Stephen"]
[Result "1/2-1/2"]
[ECO "D05"]
[WhiteElo "2306"]
[BlackElo "2301"]
[Annotator "NA"]
[PlyCount "36"]
[EventDate "2019.02.28"]
[EventType "swiss"]
[EventCountry "IRL"]
[SourceTitle "playchess.com"]
[Source "ChessBase"]
[SourceQuality "1"]
[TimeControl "5400+30"]

1. d4 {[%emt 0:00:00]} d5 {[%emt 0:03:37]} 2. Nf3 {[%emt 0:01:12]} Nf6 {[%emt 0:00:06]} 3. e3 {[%emt 0:00:35]} e6 {[%emt 0:06:49]} 4. Bd3 {[%emt 0:00:46]} Be7 {[%emt 0:00:39]} 5. O-O {[%emt 0:00:54]} O-O {[%emt 0:00:29]} 6. b3 {[%emt 0:01:55]} c5 {[%emt 0:00:19]} 7. Bb2 {[%emt 0:00:51]} Nc6 {[%emt 0:00:16]} 8. Nbd2 {[%emt 0:01:29]} b6 {[%emt 0:00:40]} 9. a3 {[%emt 0:01:29]} Bb7 {[%emt 0:00:27]} 10. Qe2 {[%emt 0:00:33]} a5 {[%emt 0:09:35]} 11. Rfd1 {[%emt 0:10:11]} a4 {[%emt 0:06:32]} 12. Bb5 {[%emt 0:21:01]} axb3 {[%emt 0:01:09]} 13. cxb3 {[%emt 0:00:04]} Na7 {[%emt 0:09:40]} 14. Bd3 {[%emt 0:02:37]} Nc6 {[%emt 0:00:09]} 15. Bb5 {[%emt 0:00:33]} Na7 {[%emt 0:00:07]} 16. Bd3 {[%emt 0:00:03]} Nc6 {[%emt 0:57:26]} 17. dxc5 bxc5 {[%emt 0:00:30]} 18. e4 Bc8 {[%emt 0:00:30]} 1/2-1/2

[Event "Irish International Open 2019"]
[Site "Dublin"]
[Date "2019.04.21"]
[Round "7.8"]
[White "Schut, Han"]
[Black "Jackson, James P"]
[Result "0-1"]
[ECO "C56"]
[WhiteElo "2173"]
[BlackElo "2388"]
[Annotator "NA"]
[PlyCount "134"]
[EventDate "2019.02.28"]
[EventType "swiss"]
[EventCountry "IRL"]
[SourceTitle "playchess.com"]
[Source "ChessBase"]
[SourceQuality "1"]
[TimeControl "5400+30"]

1. e4 {[%emt 0:00:28]} e5 {[%emt 0:00:00]} 2. Nf3 {[%emt 0:00:06]} Nc6 {[%emt 0:00:00]} 3. Bc4 {[%emt 0:00:15]} Nf6 {[%emt 0:00:00]} 4. d4 {[%emt 0:00:35]} exd4 {[%emt 0:00:04]} 5. e5 {[%emt 0:00:11]} d5 {[%emt 0:00:04]} 6. Bb5 {[%emt 0:00:09]} Ne4 {[%emt 0:00:06]} 7. Nxd4 {[%emt 0:00:12]} Bc5 {[%emt 0:00:04]} 8. Be3 {[%emt 0:00:20]} O-O {[%emt 0:00:08]} 9. Nxc6 {[%emt 0:00:43]} bxc6 {[%emt 0:00:05]} 10. Bxc5 {[%emt 0:00:06]} Nxc5 {[%emt 0:00:06]} 11. Bxc6 {[%emt 0:00:08]} Rb8 {[%emt 0:00:03]} 12. Qxd5 {[%emt 0:00:27]} Qe7 {[%emt 0:00:06]} 13. O-O {[%emt 0:00:25]} Rxb2 {[%emt 0:00:56]} 14. Nc3 {[%emt 0:01:01]} Rd8 {[%emt 0:00:23]} 15. Qf3 {[%emt 0:03:53]} Ne6 {[%emt 0:07:21]} 16. Qe3 {[%emt 0:09:01]} Rxc2 {[%emt 0:03:40]} 17. Rfc1 {[%emt 0:41:37]} Rcd2 {[%emt 0:11:48]} 18. Ne4 {[%emt 0:15:53]} R2d3 {[%emt 0:06:26]} 19. Qe1 {[%emt 0:02:40]} Nd4 {[%emt 0:07:33]} 20. Ng3 {[%emt 0:09:02]} Nxc6 {[%emt 0:13:41]} 21. Rxc6 {[%emt 0:00:14]} Bb7 {[%emt 0:00:18]} 22. Rc3 {[%emt 0:03:34]} R3d5 {[%emt 0:07:11]} 23. Re3 {[%emt 0:02:03]} Re8 {[%emt 0:06:37]} 24. Rb1 {[%emt 0:01:41]} Ba8 {[%emt 0:00:57]} 25. f4 {[%emt 0:01:01]} Qc5 {[%emt 0:03:23]} 26. Kh1 {[%emt 0:03:43]} Red8 {[%emt 0:02:30]} 27. h3 {[%emt 0:01:29]} Qc2 {[%emt 0:11:43]} 28. Re2 {[%emt 0:00:54]} Qa4 {[%emt 0:00:08]} 29. Qf2 {[%emt 0:00:46]} Rd3 {[%emt 0:02:52]} 30. Kh2 {[%emt 0:00:56]} Qd4 {[%emt 0:03:06]} 31. Nf5 {[%emt 0:01:16]} Qxf2 {[%emt 0:00:56]} 32. Rxf2 {[%emt 0:00:01]} Be4 {[%emt 0:00:56]} 33. Nh4 {[%emt 0:01:03]} Rxh3+ {[%emt 0:02:35]} 34. Kxh3 {[%emt 0:00:02]} Bxb1 {[%emt 0:00:09]} 35. Nf3 {[%emt 0:00:58]} Be4 {[%emt 0:00:27]} 36. Nd2 {[%emt 0:00:33]} Bd5 {[%emt 0:00:06]} 37. Nf1 {[%emt 0:00:12]} Kf8 {[%emt 0:12:02]} 38. Rc2 {[%emt 0:00:15]} Rd7 {[%emt 0:00:00]} 39. Ne3 {[%emt 0:00:16]} Be4 {[%emt 0:00:00]} 40. Rc4 {[%emt 0:01:08]} Bb1 {[%emt 0:00:00]} 41. Kg3 {[%emt 0:00:21]} Ke8 {[%emt 0:00:00]} 42. Ra4 {[%emt 0:00:37]} c6 {[%emt 0:00:00]} 43. Nc4 {[%emt 0:00:29]} Ke7 {[%emt 0:00:00]} 44. Nd6 {[%emt 0:00:13]} Rc7 {[%emt 0:00:00]} 45. Rb4 {[%emt 0:00:58]} Bxa2 {[%emt 0:00:00]} 46. Nf5+ {[%emt 0:00:04]} Ke6 {[%emt 0:00:00]} 47. Nxg7+ {[%emt 0:00:06]} Kd5 {[%emt 0:00:00]} 48. Nf5 {[%emt 0:00:27]} c5 {[%emt 0:00:00]} 49. Ra4 {[%emt 0:00:49]} Bb3 {[%emt 0:00:00]} 50. Ne3+ {[%emt 0:00:49]} Kc6 {[%emt 0:00:00]} 51. Ra6+ {[%emt 0:00:16]} Kb5 {[%emt 0:01:45]} 52. Rf6 {[%emt 0:00:57]} a5 {[%emt 0:00:06]} 53. Nf5 {[%emt 0:00:33]} a4 {[%emt 0:00:30]} 54. Nd6+ {[%emt 0:00:01]} Kb4 {[%emt 0:00:28]} 55. f5 {[%emt 0:00:58]} a3 {[%emt 0:01:15]} 56. Nxf7 {[%emt 0:00:24]} Bxf7 {[%emt 0:01:05]} 57. Rb6+ {[%emt 0:00:30]} Ka5 {[%emt 0:00:18]} 58. Rb8 {[%emt 0:00:01]} Bd5 {[%emt 0:00:14]} 59. Rb1 {[%emt 0:00:49]} a2 {[%emt 0:01:44]} 60. Ra1 {[%emt 0:00:02]} Rg7+ {[%emt 0:00:56]} 61. Kf4 {[%emt 0:00:05]} Rxg2 {[%emt 0:00:04]} 62. e6 {[%emt 0:00:05]} Re2 {[%emt 0:00:08]} 63. Kg5 {[%emt 0:00:12]} Kb4 {[%emt 0:00:15]} 64. Kf6 {[%emt 0:00:06]} Kb3 {[%emt 0:00:18]} 65. Rd1 {[%emt 0:00:53]} Bxe6 {[%emt 0:02:36]} 66. fxe6 {[%emt 0:00:11]} Kb2 {[%emt 0:00:03]} 67. e7 {[%emt 0:00:17]} Rxe7 {[%emt 0:00:20]} 0-1

[Event "Irish International Open 2019"]
[Site "Dublin"]
[Date "2019.04.21"]
[Round "7.9"]
[White "Fitzsimons, David"]
[Black "Han, Yichen"]
[Result "0-1"]
[ECO "B50"]
[WhiteElo "2299"]
[BlackElo "2190"]
[Annotator "NA"]
[PlyCount "144"]
[EventDate "2019.02.28"]
[EventType "swiss"]
[EventCountry "IRL"]
[SourceTitle "playchess.com"]
[Source "ChessBase"]
[SourceQuality "1"]
[TimeControl "5400+30"]

1. e4 {[%emt 1:30:30]} c5 {[%emt 0:00:00]} 2. Nf3 {[%emt 0:00:00]} d6 {[%emt 0:00:00]} 3. c3 {[%emt 0:00:00]} Nf6 {[%emt 0:00:05]} 4. Be2 {[%emt 0:00:00]} Nc6 {[%emt 0:00:25]} 5. d4 {[%emt 0:00:00]} cxd4 {[%emt 0:00:52]} 6. cxd4 {[%emt 0:00:00]} e6 {[%emt 0:01:08]} 7. Nc3 {[%emt 0:00:00]} Be7 {[%emt 0:00:14]} 8. Be3 {[%emt 0:00:00]} d5 {[%emt 0:01:34]} 9. e5 {[%emt 0:00:00]} Nd7 {[%emt 0:00:10]} 10. Bd3 {[%emt 0:00:00]} f6 {[%emt 0:09:59]} 11. exf6 {[%emt 0:00:00]} Nxf6 {[%emt 0:02:27]} 12. O-O {[%emt 0:00:00]} O-O {[%emt 0:02:32]} 13. h3 {[%emt 0:00:00]} Bd6 {[%emt 0:04:41]} 14. Rc1 {[%emt 0:00:00]} Qe8 {[%emt 0:08:27]} 15. Re1 {[%emt 0:00:00]} Qh5 {[%emt 0:04:00]} 16. a3 {[%emt 0:00:00]} a6 {[%emt 0:03:28]} 17. b4 {[%emt 0:00:00]} Bd7 {[%emt 0:09:12]} 18. Na4 {[%emt 0:00:00]} e5 {[%emt 0:08:04]} 19. Be2 {[%emt 0:00:00]} exd4 {[%emt 0:07:01]} 20. Nxd4 {[%emt 0:00:00]} Qg6 {[%emt 0:01:02]} 21. Kh1 {[%emt 0:00:00]} Ne4 {[%emt 0:01:27]} 22. Nf3 {[%emt 0:00:00]} d4 {[%emt 0:03:54]} 23. Bxd4 {[%emt 0:00:00]} Nxd4 {[%emt 0:02:19]} 24. Qxd4 {[%emt 0:00:00]} Nxf2+ {[%emt 0:04:56]} 25. Qxf2 {[%emt 0:00:00]} Bxa4 {[%emt 0:00:09]} 26. Bc4+ {[%emt 0:00:00]} Kh8 {[%emt 0:00:05]} 27. Re6 {[%emt 0:00:00]} Qg3 {[%emt 0:03:08]} 28. Qxg3 {[%emt 0:00:00]} Be5 {[%emt 0:22:41]} 29. Qf4 Bxf4 {[%emt 0:00:00]} 30. Bd5 {[%emt 0:00:00]} Bg3 {[%emt 0:00:00]} 31. Rf1 {[%emt 0:00:00]} Rac8 {[%emt 0:00:00]} 32. Rc1 {[%emt 0:15:30]} Bb5 33. Rb1 {[%emt 0:00:00]} Rc7 {[%emt 0:00:00]} 34. Rb6 {[%emt 0:00:00]} Rfc8 {[%emt 0:00:00]} 35. Bxb7 {[%emt 0:00:00]} Rb8 {[%emt 0:00:00]} 36. a4 {[%emt 0:00:00]} Bxa4 {[%emt 0:00:00]} 37. Ra1 {[%emt 0:00:00]} Bb5 {[%emt 0:00:00]} 38. Bxa6 {[%emt 0:00:00]} Rxb6 {[%emt 0:00:00]} 39. Bxb5 {[%emt 0:00:00]} g6 {[%emt 0:00:00]} 40. Bf1 {[%emt 0:00:00]} Rxb4 {[%emt 0:00:00]} 41. Ng5 {[%emt 0:00:00]} Rcb7 {[%emt 0:00:00]} 42. Kg1 {[%emt 0:00:00]} Kg7 {[%emt 0:00:00]} 43. Ra3 {[%emt 0:00:00]} Rb3 {[%emt 0:00:00]} 44. Ra6 {[%emt 0:00:00]} Rb1 {[%emt 0:00:50]} 45. Ra3 {[%emt 0:00:00]} Bd6 {[%emt 0:01:32]} 46. Rf3 {[%emt 0:00:00]} Re1 {[%emt 0:01:38]} 47. Kf2 {[%emt 0:00:00]} Re5 {[%emt 0:00:17]} 48. h4 {[%emt 0:00:00]} h6 {[%emt 0:00:30]} 49. Nh3 {[%emt 0:00:00]} Rf7 {[%emt 0:00:22]} 50. Rxf7+ {[%emt 0:00:00]} Kxf7 {[%emt 0:00:02]} 51. Bd3 {[%emt 0:00:00]} Ra5 {[%emt 0:00:43]} 52. Be2 {[%emt 0:00:00]} Ra3 {[%emt 0:00:53]} 53. Bf3 {[%emt 0:00:00]} Kf6 {[%emt 0:00:52]} 54. g4 {[%emt 0:00:00]} Ra2+ {[%emt 0:00:39]} 55. Be2 {[%emt 0:01:03]} Bg3+ {[%emt 0:00:54]} 56. Kxg3 {[%emt 0:00:13]} Rxe2 {[%emt 0:00:04]} 57. Kf4 {[%emt 0:02:50]} Ra2 {[%emt 0:00:35]} 58. g5+ {[%emt 0:04:48]} hxg5+ {[%emt 0:00:04]} 59. Nxg5 {[%emt 0:00:20]} Ra4+ {[%emt 0:00:47]} 60. Kg3 {[%emt 0:00:00]} Kf5 {[%emt 0:00:19]} 61. Nf7 {[%emt 0:00:01]} Ra3+ {[%emt 0:00:41]} 62. Kg2 {[%emt 0:00:00]} Kg4 {[%emt 0:00:39]} 63. Ne5+ {[%emt 0:00:01]} Kh5 {[%emt 0:00:17]} 64. Kf2 {[%emt 0:00:23]} Ra4 {[%emt 0:00:23]} 65. Nf3 {[%emt 0:06:51]} Rf4 {[%emt 0:00:12]} 66. Kg3 {[%emt 0:00:00]} Rxf3+ {[%emt 0:00:18]} 67. Kxf3 {[%emt 0:00:00]} Kxh4 {[%emt 0:00:07]} 68. Kf2 {[%emt 0:00:00]} Kh3 {[%emt 0:00:20]} 69. Kf3 {[%emt 0:00:00]} g5 {[%emt 0:00:10]} 70. Kf2 {[%emt 0:00:00]} g4 {[%emt 0:00:13]} 71. Kg1 {[%emt 0:00:00]} Kg3 {[%emt 0:00:06]} 72. Kh1 {[%emt 0:00:00]} Kf2 {[%emt 0:00:07]} 0-1

[Event "Irish International Open 2019"]
[Site "Dublin"]
[Date "2019.04.21"]
[Round "7.10"]
[White "Burns-Mannion, Stephen"]
[Black "Menzies, Colin"]
[Result "1/2-1/2"]
[ECO "B12"]
[WhiteElo "2285"]
[BlackElo "2183"]
[Annotator "NA"]
[PlyCount "85"]
[EventDate "2019.02.28"]
[EventType "swiss"]
[EventCountry "IRL"]
[SourceTitle "playchess.com"]
[Source "ChessBase"]
[SourceQuality "1"]
[TimeControl "5400+30"]

1. e4 {[%emt 1:30:30]} c6 {[%emt 0:00:23]} 2. d4 {[%emt 0:00:00]} d5 {[%emt 0:00:03]} 3. e5 {[%emt 0:00:00]} Bf5 {[%emt 0:00:06]} 4. Nf3 {[%emt 0:00:00]} e6 {[%emt 0:00:11]} 5. Be2 {[%emt 0:00:00]} c5 {[%emt 0:00:16]} 6. Be3 {[%emt 0:00:00]} Nd7 {[%emt 0:08:01]} 7. O-O {[%emt 0:00:00]} c4 {[%emt 0:02:10]} 8. b3 {[%emt 0:00:00]} b5 {[%emt 0:00:26]} 9. a4 {[%emt 0:00:00]} a6 {[%emt 0:01:01]} 10. axb5 {[%emt 0:00:00]} axb5 {[%emt 0:00:12]} 11. Rxa8 {[%emt 0:00:00]} Qxa8 {[%emt 0:00:08]} 12. Nh4 {[%emt 0:00:00]} Bg6 {[%emt 0:06:50]} 13. Nc3 {[%emt 0:00:00]} Qc6 {[%emt 0:11:19]} 14. Nxg6 {[%emt 0:00:00]} hxg6 {[%emt 0:00:28]} 15. Qa1 {[%emt 0:00:00]} Bb4 {[%emt 0:09:50]} 16. bxc4 {[%emt 0:00:00]} bxc4 {[%emt 0:04:55]} 17. Rb1 {[%emt 0:00:00]} Bxc3 {[%emt 0:00:17]} 18. Qxc3 {[%emt 0:00:00]} Ne7 {[%emt 0:00:38]} 19. Qa3 {[%emt 0:00:00]} f6 {[%emt 0:03:31]} 20. Bf4 {[%emt 0:00:00]} Kf7 {[%emt 0:05:11]} 21. g4 {[%emt 0:00:00]} g5 {[%emt 0:08:11]} 22. Bg3 {[%emt 0:00:00]} Ra8 {[%emt 0:06:18]} 23. Qe3 {[%emt 0:00:00]} Qa4 {[%emt 0:08:50]} 24. c3 {[%emt 0:00:00]} Ng6 {[%emt 0:06:17]} 25. Kg2 {[%emt 0:00:00]} Qc2 {[%emt 0:02:30]} 26. Rb7 {[%emt 0:00:00]} Ke7 {[%emt 0:00:12]} 27. Bf3 {[%emt 0:02:20]} Qd3 {[%emt 0:07:33]} 28. Qe1 {[%emt 0:05:58]} f5 {[%emt 0:01:24]} 29. gxf5 {[%emt 0:00:54]} Qxf5 {[%emt 0:00:10]} 30. h3 {[%emt 0:00:18]} Nh4+ {[%emt 0:03:40]} 31. Bxh4 {[%emt 0:00:24]} gxh4 {[%emt 0:00:01]} 32. Qd2 {[%emt 0:00:52]} Rf8 {[%emt 0:00:31]} 33. Bg4 {[%emt 0:01:34]} Qe4+ {[%emt 0:00:53]} 34. f3 {[%emt 0:01:34]} Qf4 {[%emt 0:01:28]} 35. Qxf4 {[%emt 0:01:15]} Rxf4 {[%emt 0:00:01]} 36. Kf2 {[%emt 0:00:10]} Rf8 {[%emt 0:00:08]} 37. Ke3 {[%emt 0:00:10]} Ra8 {[%emt 0:00:20]} 38. f4 {[%emt 0:00:12]} g6 {[%emt 0:02:15]} 39. Rb2 {[%emt 0:01:20]} Ra1 {[%emt 0:00:34]} 40. Kd2 {[%emt 0:01:33]} Rf1 {[%emt 0:00:34]} 41. Ke3 {[%emt 0:00:46]} Rc1 {[%emt 0:00:10]} 42. Kd2 {[%emt 0:00:21]} Rf1 {[%emt 0:00:04]} 43. Ke3 {[%emt 0:00:42]} 1/2-1/2